fUST/lending_fUST_20260527
["ID","MTS","AMOUNT","RATE_DAILY","PERIOD"]
[423120905,1779868241000,-306.96,8.493e-05,2]
[423120909,1779868241000,-500.0,8.493e-05,2]
[423120907,1779868241000,-500.0,8.493e-05,2]
[423120913,1779868241000,-500.0,8.493e-05,2]
[423120915,1779868241000,-500.0,8.493e-05,2]
[423120917,1779868241000,-500.0,8.493e-05,2]
[423120787,1779868241000,-500.0,8.219e-05,2]
[423120921,1779868241000,-500.0,8.493e-05,2]
[423120861,1779868241000,-500.0,8.493e-05,2]
[423120855,1779868241000,-500.0,8.493e-05,2]
[423120885,1779868241000,-500.0,8.493e-05,2]
[423120857,1779868241000,-956.9599,8.493e-05,2]
[423120805,1779868241000,-262.22839843,8.219e-05,2]
[423120859,1779868241000,-563.93,8.493e-05,2]
[423120795,1779868241000,-500.0,8.219e-05,2]
[423120785,1779868241000,-500.0,8.219e-05,2]
[423120789,1779868241000,-500.0,8.219e-05,2]
[423120791,1779868241000,-500.0,8.219e-05,2]
[423120793,1779868241000,-500.0,8.219e-05,2]
[423120811,1779868241000,-500.0,8.219e-05,2]
[423120809,1779868241000,-500.0,8.219e-05,2]
[423120815,1779868241000,-984.29,8.219e-05,2]
[423120817,1779868241000,-500.0,8.219e-05,2]
[423120819,1779868241000,-500.0,8.219e-05,2]
[423120821,1779868241000,-500.0,8.219e-05,2]
[423120813,1779868241000,-500.0,8.219e-05,2]
[423120823,1779868241000,-500.0,8.219e-05,2]
[423120807,1779868241000,-500.0,8.219e-05,2]
[423120829,1779868241000,-151.0,8.219e-05,2]
[423120833,1779868241000,-197.01611,8.219e-05,2]
[423120851,1779868241000,-326.23925281,8.493e-05,2]
[423120849,1779868241000,-500.0,8.493e-05,2]
[423120839,1779868241000,-160.0,8.26e-05,2]
[423120845,1779868241000,-247.09180031,8.4e-05,2]
[423120847,1779868241000,-245.93367974,8.4e-05,2]
[423120841,1779868241000,-247.09180031,8.3e-05,2]
[423120853,1779868241000,-628.24,8.493e-05,2]
[423120835,1779868241000,-456.531998,8.239e-05,2]
[423120837,1779868241000,-500.0,8.24e-05,2]
[423120827,1779868241000,-151.0,8.219e-05,2]
[423120825,1779868241000,-1770.1914021,8.219e-05,2]
[423120831,1779868241000,-151.0,8.219e-05,2]
[423120843,1779868241000,-245.93367974,8.3e-05,2]
[423121003,1779868242000,-500.0,8.493e-05,2]
[423121001,1779868242000,-500.0,8.493e-05,2]
[423121012,1779868242000,-500.0,8.493e-05,2]
[423120999,1779868242000,-500.0,8.493e-05,2]
[423120973,1779868242000,-629.7,8.493e-05,2]
[423120997,1779868242000,-500.0,8.493e-05,2]
[423120990,1779868242000,-560.58,8.493e-05,2]
[423120995,1779868242000,-500.0,8.493e-05,2]
[423120991,1779868242000,-500.0,8.493e-05,2]
[423120981,1779868242000,-500.0,8.493e-05,2]
[423120987,1779868242000,-500.0,8.493e-05,2]
[423121016,1779868242000,-500.0,8.493e-05,2]
[423120993,1779868242000,-500.0,8.493e-05,2]
[423121010,1779868242000,-593.31,8.493e-05,2]
[423121025,1779868242000,-646.95,8.493e-05,2]
[423121007,1779868242000,-500.0,8.493e-05,2]
[423121005,1779868242000,-500.0,8.493e-05,2]
[423121018,1779868242000,-500.0,8.493e-05,2]
[423121020,1779868242000,-500.0,8.493e-05,2]
[423121022,1779868242000,-500.0,8.493e-05,2]
[423121033,1779868242000,-500.0,8.493e-05,2]
[423121027,1779868242000,-500.0,8.493e-05,2]
[423121035,1779868242000,-500.0,8.493e-05,2]
[423121038,1779868242000,-500.0,8.493e-05,2]
[423121037,1779868242000,-354.8180437,8.493e-05,2]
[423121044,1779868242000,-491.31,8.493e-05,2]
[423121030,1779868242000,-500.0,8.493e-05,2]
[423120975,1779868242000,-521.87,8.493e-05,2]
[423121014,1779868242000,-500.0,8.493e-05,2]
[423120977,1779868242000,-345.97453762,8.493e-05,2]
[423121042,1779868242000,-500.0,8.493e-05,2]
[423120983,1779868242000,-500.0,8.493e-05,2]
[423120923,1779868242000,-500.0,8.493e-05,2]
[423120927,1779868242000,-500.0,8.493e-05,2]
[423120925,1779868242000,-500.0,8.493e-05,2]
[423120929,1779868242000,-562.85,8.493e-05,2]
[423120939,1779868242000,-500.0,8.493e-05,2]
[423120935,1779868242000,-526.60206336,8.493e-05,2]
[423120931,1779868242000,-500.0,8.493e-05,2]
[423120937,1779868242000,-500.0,8.493e-05,2]
[423120933,1779868242000,-500.0,8.493e-05,2]
[423120941,1779868242000,-500.0,8.493e-05,2]
[423120940,1779868242000,-633.52,8.493e-05,2]
[423120942,1779868242000,-500.0,8.493e-05,2]
[423120943,1779868242000,-500.0,8.493e-05,2]
[423120979,1779868242000,-500.0,8.493e-05,2]
[423120947,1779868242000,-500.0,8.493e-05,2]
[423120951,1779868242000,-500.0,8.493e-05,2]
[423120949,1779868242000,-577.13,8.493e-05,2]
[423120952,1779868242000,-500.0,8.493e-05,2]
[423120960,1779868242000,-500.0,8.493e-05,2]
[423120955,1779868242000,-500.0,8.493e-05,2]
[423120958,1779868242000,-531.92,8.493e-05,2]
[423120956,1779868242000,-500.0,8.493e-05,2]
[423120962,1779868242000,-613.91,8.493e-05,2]
[423120964,1779868242000,-500.0,8.493e-05,2]
[423120967,1779868242000,-500.0,8.493e-05,2]
[423120969,1779868242000,-500.0,8.493e-05,2]
[423120971,1779868242000,-575.79,8.493e-05,2]
[423120985,1779868242000,-373.45,8.493e-05,2]
[423120945,1779868242000,-500.0,8.493e-05,2]
[423121029,1779868242000,-500.0,8.493e-05,2]
[423121074,1779868242000,-513.58,8.493e-05,2]
[423121046,1779868242000,-503.25272084,8.493e-05,2]
[423121113,1779868242000,-500.0,8.493e-05,2]
[423121117,1779868242000,-500.74604964,8.493e-05,2]
[423121119,1779868242000,-1519.97,8.493e-05,2]
[423121122,1779868242000,-500.0,8.493e-05,2]
[423121124,1779868242000,-501.19873282,8.493e-05,2]
[423121133,1779868242000,-500.0,8.493e-05,2]
[423121140,1779868242000,-500.0,8.493e-05,2]
[423121136,1779868242000,-500.0,8.493e-05,2]
[423121139,1779868242000,-1159.28,8.493e-05,2]
[423121142,1779868242000,-501.56354077,8.493e-05,2]
[423121144,1779868242000,-570.0,8.493e-05,2]
[423121146,1779868242000,-500.0,8.493e-05,2]
[423121131,1779868242000,-958.0,8.493e-05,2]
[423121111,1779868242000,-527.17388175,8.493e-05,2]
[423121128,1779868242000,-535.34,8.493e-05,2]
[423121126,1779868242000,-500.0,8.493e-05,2]
[423121149,1779868242000,-513.87886229,8.493e-05,2]
[423121163,1779868242000,-500.0,8.493e-05,2]
[423121165,1779868242000,-503.05613016,8.493e-05,2]
[423121169,1779868242000,-500.0,8.493e-05,2]
[423121151,1779868242000,-500.0,8.493e-05,2]
[423121171,1779868242000,-500.50308923,8.493e-05,2]
[423121167,1779868242000,-500.4710508,8.493e-05,2]
[423121173,1779868242000,-500.41799398,8.493e-05,2]
[423121155,1779868242000,-500.0,8.493e-05,2]
[423121157,1779868242000,-500.0,8.493e-05,2]
[423121161,1779868242000,-500.0,8.493e-05,2]
[423121159,1779868242000,-500.0,8.493e-05,2]
[423121148,1779868242000,-500.0,8.493e-05,2]
[423121115,1779868242000,-500.0,8.493e-05,2]
[423121153,1779868242000,-501.01625253,8.493e-05,2]
[423121106,1779868242000,-501.64430849,8.493e-05,2]
[423121120,1779868242000,-500.0,8.493e-05,2]
[423121060,1779868242000,-500.0,8.493e-05,2]
[423121048,1779868242000,-500.0,8.493e-05,2]
[423121053,1779868242000,-500.0,8.493e-05,2]
[423121050,1779868242000,-500.0,8.493e-05,2]
[423121064,1779868242000,-500.96737892,8.493e-05,2]
[423121066,1779868242000,-500.0,8.493e-05,2]
[423121056,1779868242000,-500.0,8.493e-05,2]
[423121054,1779868242000,-500.0,8.493e-05,2]
[423121062,1779868242000,-500.0,8.493e-05,2]
[423121058,1779868242000,-503.35,8.493e-05,2]
[423121070,1779868242000,-501.45945344,8.493e-05,2]
[423121068,1779868242000,-500.0,8.493e-05,2]
[423121072,1779868242000,-500.0,8.493e-05,2]
[423121040,1779868242000,-502.56795379,8.493e-05,2]
[423121086,1779868242000,-500.0,8.493e-05,2]
[423121175,1779868242000,-500.0,8.493e-05,2]
[423121104,1779868242000,-500.0,8.493e-05,2]
[423121096,1779868242000,-500.0,8.493e-05,2]
[423121094,1779868242000,-588.45,8.493e-05,2]
[423121091,1779868242000,-552.27,8.493e-05,2]
[423121083,1779868242000,-415.24482508,8.493e-05,2]
[423121102,1779868242000,-1332.49,8.493e-05,2]
[423121108,1779868242000,-500.0,8.493e-05,2]
[423121078,1779868242000,-500.0,8.493e-05,2]
[423121079,1779868242000,-500.0,8.493e-05,2]
[423121089,1779868242000,-500.0,8.493e-05,2]
[423121087,1779868242000,-500.0,8.493e-05,2]
[423121082,1779868242000,-501.57668196,8.493e-05,2]
[423121076,1779868242000,-515.42498317,8.493e-05,2]
[423121246,1779868243000,-151.0,8.529e-05,2]
[423121253,1779868243000,-162.380719,8.529e-05,2]
[423121248,1779868243000,-301.98141132,8.529e-05,2]
[423121251,1779868243000,-151.0,8.529e-05,2]
[423121236,1779868243000,-152.0,8.514e-05,7]
[423121239,1779868243000,-152.0,8.517e-05,7]
[423121234,1779868243000,-152.0,8.514e-05,7]
[423121255,1779868243000,-151.0,8.529e-05,2]
[423121242,1779868243000,-151.0,8.529e-05,2]
[423121243,1779868243000,-151.0,8.529e-05,2]
[423121277,1779868243000,-151.0,8.529e-05,2]
[423121261,1779868243000,-151.0,8.529e-05,2]
[423121257,1779868243000,-151.0,8.529e-05,2]
[423121264,1779868243000,-151.0,8.529e-05,2]
[423121263,1779868243000,-151.0,8.529e-05,2]
[423121232,1779868243000,-152.0,8.511e-05,7]
[423121279,1779868243000,-151.0,8.529e-05,2]
[423121267,1779868243000,-151.0,8.529e-05,2]
[423121265,1779868243000,-151.0,8.529e-05,2]
[423121283,1779868243000,-151.0,8.529e-05,2]
[423121281,1779868243000,-151.0,8.529e-05,2]
[423121269,1779868243000,-151.0,8.529e-05,2]
[423121259,1779868243000,-151.0,8.529e-05,2]
[423121230,1779868243000,-152.0,8.511e-05,7]
[423121223,1779868243000,-247.09180031,8.5e-05,2]
[423121225,1779868243000,-245.93367974,8.5e-05,2]
[423121271,1779868243000,-151.0,8.529e-05,2]
[423121189,1779868243000,-500.0,8.493e-05,2]
[423121191,1779868243000,-500.0,8.493e-05,2]
[423121193,1779868243000,-500.0,8.493e-05,2]
[423121179,1779868243000,-500.0,8.493e-05,2]
[423121195,1779868243000,-500.0,8.493e-05,2]
[423121177,1779868243000,-500.48474098,8.493e-05,2]
[423121183,1779868243000,-501.30911003,8.493e-05,2]
[423121185,1779868243000,-592.88,8.493e-05,2]
[423121200,1779868243000,-500.0,8.493e-05,2]
[423121199,1779868243000,-500.0,8.493e-05,2]
[423121187,1779868243000,-500.0,8.493e-05,2]
[423121181,1779868243000,-500.94243605,8.493e-05,2]
[423121202,1779868243000,-643.67,8.493e-05,2]
[423121215,1779868243000,-533.49,8.493e-05,2]
[423121217,1779868243000,-500.0,8.493e-05,2]
[423121221,1779868243000,-505.58019729,8.493e-05,2]
[423121219,1779868243000,-596.34,8.493e-05,2]
[423121207,1779868243000,-500.0,8.493e-05,2]
[423121204,1779868243000,-5669.23,8.493e-05,2]
[423121211,1779868243000,-388.857567,8.493e-05,2]
[423121209,1779868243000,-500.0,8.493e-05,2]
[423121228,1779868243000,-152.0,8.511e-05,7]
[423121213,1779868243000,-984.29,8.493e-05,2]
[423121197,1779868243000,-500.0,8.493e-05,2]
[423121273,1779868243000,-151.0,8.529e-05,2]
[423121285,1779868243000,-161.19271659,8.529e-05,2]
[423121360,1779868243000,-500.0,8.767e-05,2]
[423121344,1779868243000,-500.0,8.767e-05,2]
[423121347,1779868243000,-230.75,8.767e-05,2]
[423121349,1779868243000,-500.0,8.767e-05,2]
[423121362,1779868243000,-497.08,8.767e-05,2]
[423121372,1779868243000,-344.16,8.767e-05,2]
[423121375,1779868243000,-500.0,8.767e-05,2]
[423121378,1779868243000,-500.0,8.767e-05,2]
[423121365,1779868243000,-500.0,8.767e-05,2]
[423121369,1779868243000,-500.0,8.767e-05,2]
[423121357,1779868243000,-255.62,8.767e-05,2]
[423121382,1779868243000,-500.0,8.767e-05,2]
[423121386,1779868243000,-500.0,8.767e-05,2]
[423121390,1779868243000,-468.8,8.767e-05,2]
[423121407,1779868243000,-500.0,8.767e-05,2]
[423121398,1779868243000,-267.473258,8.767e-05,2]
[423121401,1779868243000,-500.0,8.767e-05,2]
[423121409,1779868243000,-500.0,8.767e-05,2]
[423121400,1779868243000,-646.95,8.767e-05,2]
[423121402,1779868243000,-216.41268597,8.767e-05,2]
[423121404,1779868243000,-500.0,8.767e-05,2]
[423121275,1779868243000,-151.0,8.529e-05,2]
[423121395,1779868243000,-500.0,8.767e-05,2]
[423121355,1779868243000,-500.0,8.767e-05,2]
[423121393,1779868243000,-248.09,8.767e-05,2]
[423121341,1779868243000,-307.75,8.767e-05,2]
[423121287,1779868243000,-585.68371873,8.63e-05,2]
[423121352,1779868243000,-500.0,8.767e-05,2]
[423121291,1779868243000,-500.0,8.767e-05,2]
[423121289,1779868243000,-587.08201276,8.651e-05,2]
[423121292,1779868243000,-956.9599,8.767e-05,2]
[423121303,1779868243000,-500.0,8.767e-05,2]
[423121305,1779868243000,-500.0,8.767e-05,2]
[423121296,1779868243000,-209.56,8.767e-05,2]
[423121295,1779868243000,-211.87864211,8.767e-05,2]
[423121312,1779868243000,-500.0,8.767e-05,2]
[423121298,1779868243000,-291.77,8.767e-05,2]
[423121307,1779868243000,-500.0,8.767e-05,2]
[423121323,1779868243000,-638.54,8.767e-05,2]
[423121301,1779868243000,-199.32,8.767e-05,2]
[423121310,1779868243000,-500.0,8.767e-05,2]
[423121314,1779868243000,-471.34,8.767e-05,2]
[423121316,1779868243000,-588.79,8.767e-05,2]
[423121318,1779868243000,-500.0,8.767e-05,2]
[423121332,1779868243000,-500.0,8.767e-05,2]
[423121338,1779868243000,-500.0,8.767e-05,2]
[423121335,1779868243000,-500.0,8.767e-05,2]
[423121328,1779868243000,-385.65,8.767e-05,2]
[423121309,1779868243000,-464.44,8.767e-05,2]
[423121326,1779868243000,-500.0,8.767e-05,2]
[423121504,1779868244000,-337.23,8.767e-05,2]
[423121506,1779868244000,-587.0,8.974e-05,2]
[423121477,1779868244000,-500.0,8.767e-05,2]
[423121502,1779868244000,-984.29,8.767e-05,2]
[423121508,1779868244000,-242.21,9.041e-05,2]
[423121496,1779868244000,-500.0,8.767e-05,2]
[423121483,1779868244000,-500.0,8.767e-05,2]
[423121493,1779868244000,-5669.23,8.767e-05,2]
[423121488,1779868244000,-500.0,8.767e-05,2]
[423121486,1779868244000,-500.0,8.767e-05,2]
[423121499,1779868244000,-500.0,8.767e-05,2]
[423121490,1779868244000,-500.0,8.767e-05,2]
[423121517,1779868244000,-500.0,9.041e-05,2]
[423121536,1779868244000,-500.0,9.041e-05,2]
[423121511,1779868244000,-956.9599,9.041e-05,2]
[423121515,1779868244000,-500.0,9.041e-05,2]
[423121519,1779868244000,-500.0,9.041e-05,2]
[423121540,1779868244000,-500.0,9.041e-05,2]
[423121522,1779868244000,-500.0,9.041e-05,2]
[423121524,1779868244000,-500.0,9.041e-05,2]
[423121530,1779868244000,-460.42,9.041e-05,2]
[423121532,1779868244000,-500.0,9.041e-05,2]
[423121534,1779868244000,-500.0,9.041e-05,2]
[423121528,1779868244000,-500.0,9.041e-05,2]
[423121537,1779868244000,-304.3,9.041e-05,2]
[423121526,1779868244000,-500.0,9.041e-05,2]
[423121475,1779868244000,-501.44538438,8.767e-05,2]
[423121513,1779868244000,-500.0,9.041e-05,2]
[423121473,1779868244000,-500.0,8.767e-05,2]
[423121418,1779868244000,-500.0,8.767e-05,2]
[423121479,1779868244000,-500.0,8.767e-05,2]
[423121412,1779868244000,-500.0,8.767e-05,2]
[423121414,1779868244000,-500.0,8.767e-05,2]
[423121416,1779868244000,-503.35,8.767e-05,2]
[423121420,1779868244000,-500.0,8.767e-05,2]
[423121425,1779868244000,-500.0,8.767e-05,2]
[423121427,1779868244000,-482.34617459,8.767e-05,2]
[423121423,1779868244000,-500.0,8.767e-05,2]
[423121429,1779868244000,-500.0,8.767e-05,2]
[423121431,1779868244000,-500.0,8.767e-05,2]
[423121435,1779868244000,-500.0,8.767e-05,2]
[423121433,1779868244000,-500.0,8.767e-05,2]
[423121444,1779868244000,-500.0,8.767e-05,2]
[423121448,1779868244000,-500.0,8.767e-05,2]
[423121481,1779868244000,-500.0,8.767e-05,2]
[423121446,1779868244000,-1519.97,8.767e-05,2]
[423121440,1779868244000,-500.0,8.767e-05,2]
[423121450,1779868244000,-500.0,8.767e-05,2]
[423121452,1779868244000,-958.0,8.767e-05,2]
[423121441,1779868244000,-500.0,8.767e-05,2]
[423121454,1779868244000,-500.0,8.767e-05,2]
[423121458,1779868244000,-500.0,8.767e-05,2]
[423121456,1779868244000,-1159.28,8.767e-05,2]
[423121461,1779868244000,-303.33,8.767e-05,2]
[423121463,1779868244000,-500.0,8.767e-05,2]
[423121467,1779868244000,-228.64,8.767e-05,2]
[423121465,1779868244000,-500.0,8.767e-05,2]
[423121469,1779868244000,-433.52,8.767e-05,2]
[423121471,1779868244000,-500.0,8.767e-05,2]
[423121437,1779868244000,-1332.49,8.767e-05,2]
[423121542,1779868244000,-374.53,9.041e-05,2]
[423121521,1779868244000,-412.07,9.041e-05,2]
[423121544,1779868244000,-181.65,9.041e-05,2]
[423121614,1779868244000,-500.0,9.041e-05,2]
[423121612,1779868244000,-500.0,9.041e-05,2]
[423121617,1779868244000,-642.01,9.041e-05,2]
[423121616,1779868244000,-616.19147495,9.041e-05,2]
[423121621,1779868244000,-500.0,9.041e-05,2]
[423121619,1779868244000,-500.0,9.041e-05,2]
[423121623,1779868244000,-380.4761174,9.041e-05,2]
[423121625,1779868244000,-500.0,9.041e-05,2]
[423121627,1779868244000,-5669.23,9.041e-05,2]
[423121635,1779868244000,-600.0,9.119e-05,2]
[423121629,1779868244000,-500.0,9.041e-05,2]
[423121633,1779868244000,-984.29,9.041e-05,2]
[423121637,1779868244000,-391.09914359,9.132e-05,2]
[423121599,1779868244000,-958.0,9.041e-05,2]
[423121632,1779868244000,-500.0,9.041e-05,2]
[423121639,1779868244000,-956.9599,9.315e-05,2]
[423121647,1779868244000,-194.9,9.315e-05,2]
[423121645,1779868244000,-500.0,9.315e-05,2]
[423121649,1779868244000,-500.0,9.315e-05,2]
[423121651,1779868244000,-154.67,9.315e-05,2]
[423121655,1779868244000,-342.98,9.315e-05,2]
[423121653,1779868244000,-500.0,9.315e-05,2]
[423121657,1779868244000,-590.3,9.315e-05,2]
[423121659,1779868244000,-500.0,9.315e-05,2]
[423121661,1779868244000,-221.37,9.315e-05,2]
[423121665,1779868244000,-500.0,9.315e-05,2]
[423121663,1779868244000,-357.473,9.315e-05,2]
[423121556,1779868244000,-459.41,9.041e-05,2]
[423121643,1779868244000,-500.0,9.315e-05,2]
[423121608,1779868244000,-500.0,9.041e-05,2]
[423121641,1779868244000,-231.71,9.315e-05,2]
[423121606,1779868244000,-390.28036842,9.041e-05,2]
[423121610,1779868244000,-500.0,9.041e-05,2]
[423121554,1779868244000,-500.0,9.041e-05,2]
[423121562,1779868244000,-500.0,9.041e-05,2]
[423121558,1779868244000,-156.52,9.041e-05,2]
[423121548,1779868244000,-500.0,9.041e-05,2]
[423121546,1779868244000,-500.0,9.041e-05,2]
[423121552,1779868244000,-646.95,9.041e-05,2]
[423121560,1779868244000,-500.0,9.041e-05,2]
[423121568,1779868244000,-500.0,9.041e-05,2]
[423121566,1779868244000,-503.35,9.041e-05,2]
[423121564,1779868244000,-500.0,9.041e-05,2]
[423121570,1779868244000,-500.0,9.041e-05,2]
[423121572,1779868244000,-500.0,9.041e-05,2]
[423121574,1779868244000,-500.0,9.041e-05,2]
[423121550,1779868244000,-500.0,9.041e-05,2]
[423121578,1779868244000,-500.0,9.041e-05,2]
[423121577,1779868244000,-500.0,9.041e-05,2]
[423121602,1779868244000,-1159.28,9.041e-05,2]
[423121601,1779868244000,-500.0,9.041e-05,2]
[423121597,1779868244000,-267.4,9.041e-05,2]
[423121587,1779868244000,-500.0,9.041e-05,2]
[423121593,1779868244000,-1519.97,9.041e-05,2]
[423121604,1779868244000,-242.43928219,9.041e-05,2]
[423121595,1779868244000,-500.0,9.041e-05,2]
[423121589,1779868244000,-500.0,9.041e-05,2]
[423121585,1779868244000,-1332.49,9.041e-05,2]
[423121583,1779868244000,-500.0,9.041e-05,2]
[423121580,1779868244000,-500.0,9.041e-05,2]
[423121591,1779868244000,-500.0,9.041e-05,2]
[423121748,1779868245000,-175.74138,9.382e-05,2]
[423121750,1779868245000,-452.84982787,9.542e-05,2]
[423121744,1779868245000,-742.0,9.338e-05,2]
[423121743,1779868245000,-449.585,9.338e-05,2]
[423121726,1779868245000,-500.0,9.315e-05,2]
[423121741,1779868245000,-648.0,9.338e-05,2]
[423121737,1779868245000,-1414.0,9.338e-05,2]
[423121739,1779868245000,-2204.904,9.338e-05,2]
[423121735,1779868245000,-984.29,9.315e-05,2]
[423121731,1779868245000,-500.0,9.315e-05,2]
[423121733,1779868245000,-500.0,9.315e-05,2]
[423121756,1779868245000,-500.0,9.589e-05,2]
[423121746,1779868245000,-185.0,9.338e-05,2]
[423121754,1779868245000,-956.9599,9.589e-05,2]
[423121763,1779868245000,-500.0,9.589e-05,2]
[423121761,1779868245000,-500.0,9.589e-05,2]
[423121752,1779868245000,-815.12969016,9.588e-05,2]
[423121759,1779868245000,-500.0,9.589e-05,2]
[423121773,1779868245000,-500.0,9.589e-05,2]
[423121774,1779868245000,-500.0,9.589e-05,2]
[423121771,1779868245000,-646.95,9.589e-05,2]
[423121769,1779868245000,-500.0,9.589e-05,2]
[423121767,1779868245000,-279.08,9.589e-05,2]
[423121765,1779868245000,-500.0,9.589e-05,2]
[423121776,1779868245000,-500.0,9.589e-05,2]
[423121780,1779868245000,-500.0,9.589e-05,2]
[423121786,1779868245000,-500.0,9.589e-05,2]
[423121728,1779868245000,-5669.23,9.315e-05,2]
[423121757,1779868245000,-500.0,9.589e-05,2]
[423121724,1779868245000,-500.0,9.315e-05,2]
[423121668,1779868245000,-500.0,9.315e-05,2]
[423121718,1779868245000,-500.0,9.315e-05,2]
[423121790,1779868245000,-500.0,9.589e-05,2]
[423121670,1779868245000,-556.14,9.315e-05,2]
[423121666,1779868245000,-500.0,9.315e-05,2]
[423121672,1779868245000,-646.95,9.315e-05,2]
[423121674,1779868245000,-191.89,9.315e-05,2]
[423121691,1779868245000,-500.0,9.315e-05,2]
[423121682,1779868245000,-490.6,9.315e-05,2]
[423121687,1779868245000,-500.0,9.315e-05,2]
[423121693,1779868245000,-500.0,9.315e-05,2]
[423121695,1779868245000,-500.0,9.315e-05,2]
[423121679,1779868245000,-500.0,9.315e-05,2]
[423121697,1779868245000,-1332.49,9.315e-05,2]
[423121689,1779868245000,-500.0,9.315e-05,2]
[423121676,1779868245000,-500.0,9.315e-05,2]
[423121680,1779868245000,-503.35,9.315e-05,2]
[423121683,1779868245000,-635.73677832,9.315e-05,2]
[423121685,1779868245000,-500.0,9.315e-05,2]
[423121677,1779868245000,-500.0,9.315e-05,2]
[423121699,1779868245000,-500.0,9.315e-05,2]
[423121700,1779868245000,-500.0,9.315e-05,2]
[423121712,1779868245000,-1159.28,9.315e-05,2]
[423121710,1779868245000,-500.0,9.315e-05,2]
[423121702,1779868245000,-648.93,9.315e-05,2]
[423121704,1779868245000,-1519.97,9.315e-05,2]
[423121714,1779868245000,-500.0,9.315e-05,2]
[423121716,1779868245000,-500.0,9.315e-05,2]
[423121706,1779868245000,-500.0,9.315e-05,2]
[423121708,1779868245000,-958.0,9.315e-05,2]
[423121722,1779868245000,-500.0,9.315e-05,2]
[423121720,1779868245000,-500.0,9.315e-05,2]
[423121793,1779868245000,-500.0,9.589e-05,2]
[423121784,1779868245000,-153.37,9.589e-05,2]
[423121900,1779868245000,-823.0,9.871e-05,2]
[423121851,1779868245000,-500.0,9.863e-05,2]
[423121853,1779868245000,-503.35,9.863e-05,2]
[423121864,1779868245000,-500.0,9.863e-05,2]
[423121857,1779868245000,-500.0,9.863e-05,2]
[423121855,1779868245000,-500.0,9.863e-05,2]
[423121862,1779868245000,-500.0,9.863e-05,2]
[423121859,1779868245000,-500.0,9.863e-05,2]
[423121869,1779868245000,-500.0,9.863e-05,2]
[423121866,1779868245000,-1332.49,9.863e-05,2]
[423121868,1779868245000,-500.0,9.863e-05,2]
[423121883,1779868245000,-491.46,9.863e-05,2]
[423121871,1779868245000,-1519.97,9.863e-05,2]
[423121889,1779868245000,-500.0,9.863e-05,2]
[423121887,1779868245000,-315.43,9.863e-05,2]
[423121881,1779868245000,-500.0,9.863e-05,2]
[423121875,1779868245000,-500.0,9.863e-05,2]
[423121877,1779868245000,-1159.28,9.863e-05,2]
[423121879,1779868245000,-500.0,9.863e-05,2]
[423121873,1779868245000,-958.0,9.863e-05,2]
[423121893,1779868245000,-500.0,9.863e-05,2]
[423121891,1779868245000,-5669.23,9.863e-05,2]
[423121895,1779868245000,-500.0,9.863e-05,2]
[423121897,1779868245000,-984.29,9.863e-05,2]
[423121904,1779868245000,-1666.75862041,9.896e-05,2]
[423121909,1779868245000,-472.78791663,9.938e-05,2]
[423121899,1779868245000,-425.92817323,9.867e-05,2]
[423121782,1779868245000,-500.0,9.589e-05,2]
[423121902,1779868245000,-456.6123856,9.88e-05,2]
[423121906,1779868245000,-1449.11944918,9.932e-05,2]
[423121849,1779868245000,-500.0,9.863e-05,2]
[423121847,1779868245000,-500.0,9.863e-05,2]
[423121885,1779868245000,-500.0,9.863e-05,2]
[423121841,1779868245000,-500.0,9.863e-05,2]
[423121778,1779868245000,-503.35,9.589e-05,2]
[423121845,1779868245000,-646.95,9.863e-05,2]
[423121795,1779868245000,-1332.49,9.589e-05,2]
[423121798,1779868245000,-500.0,9.589e-05,2]
[423121801,1779868245000,-1519.97,9.589e-05,2]
[423121812,1779868245000,-500.0,9.589e-05,2]